Cogmind - Beta 11 X4 @@@ ROGUE MODE // 2021.06.01 @ 21:03:01 Player: Terminus Result: Destroyed by C-40 Crusher with Compactor Performance ------------- Evolutions (3) 1500 Regions Visited (10) 2000 Robots Destroyed (222) 1110 Value Destroyed (6465) 6465 Prototype IDs (34) 680 Alien Tech Used (0) 0 Bonus (926) 926 TOTAL SCORE: 12681 Bonus ------- High Alert Combat Kills 218 Follower Combat Kills 774 Friendly Fire -66 Cogmind --------- Core Integrity 0/700 Matter 110/300 Energy 99/100 System Corruption 23% Temperature Cool (0) Movement Core (50) Location -7/Waste Parts ------- > --- POWER (1) -------- (None) > --- PROPULSION (3) --- (None) > --- UTILITY (6) ------ (None) > --- WEAPON (3) ------- (None) > --- INVENTORY (5) ---- Small Matter Pod (50) Experimental Sensor Array Heavy Ion Cannon Heavy Rocket Launcher Remote Datajack Peak State ------------ > --- POWER ------------ Heavy Deuterium Engine > --- PROPULSION ------- Advanced Treads Heavy Treads > --- UTILITY ---------- Cooling System Huge Storage Unit Experimental Sensor Array Improved Signal Interpreter Armor Integrity Analyzer Hacking Suite > --- WEAPON ----------- Flak Gun Flak Gun Flak Gun > --- INVENTORY -------- Cold Fusion Reactor Cold Fusion Reactor Cooling System Cooling System Small Matter Pod Advanced Targeting Computer Weapon Cycler Hardened Medium Armor Plating Hardened Medium Armor Plating Improved Medium Armor Plating Trap Reconfigurator Advanced Beam Rifle Advanced Beam Rifle Advanced Beam Rifle Advanced Beam Rifle Heavy Ion Cannon Flak Gun Flak Gun Flak Gun Advanced EMP Blaster Heavy Rocket Launcher Remote Datajack Plasma Cutter Great Axe [Rating: 61] Favorites ----------- Power Deuterium Engine Engine Deuterium Engine Reactor Cold Fusion Reactor Propulsion Light Treads Treads Light Treads Utility Hacking Suite Device Cooling System Storage Huge Storage Unit Processor Improved Signal Interpreter Hackware Hacking Suite Protection Medium Armor Plating Weapon Enhanced Autogun Energy Gun Advanced Beam Rifle Energy Cannon Advanced Beam Cannon Ballistic Gun Enhanced Autogun Launcher Grenade Launcher Slashing Weapon Great Axe Build | -11 -10 -10 -9 -9 -9 -8 -8 -8 -7 -7 ------- Run | Scr Mat Min Mat Min Exi Min Mat Sto Fac Was Slots Evolved 6 | . . . 2 . . . 2 . 2 . Power . | . . . . . . . . . . . Propulsion 1 | . . . . . . . 1 . . . Utility 4 | . . . 1 . . . 1 . 2 . Weapon 1 | . . . 1 . . . . . . . Parts Attached 217 | 6 14 1 33 2 1 . 36 46 62 16 Power 12 | 1 4 . 1 . . . 1 3 1 1 Engine 10 | 1 4 . 1 . . . 1 2 1 . Core . | . . . . . . . . . . . Reactor 2 | . . . . . . . . 1 . 1 Propulsion 38 | 2 4 . 7 1 1 . 9 11 2 1 Treads 38 | 2 4 . 7 1 1 . 9 11 2 1 Leg . | . . . . . . . . . . . Wheel . | . . . . . . . . . . . Hover . | . . . . . . . . . . . Flight . | . . . . . . . . . . . Utility 81 | 1 4 . 7 . . . 13 14 38 4 Device 40 | . 1 . 3 . . . 6 6 21 3 Storage 6 | 1 2 . 1 . . . 1 . 1 . Processor 2 | . . . . . . . . . 2 . Hackware 2 | . . . . . . . 1 . 1 . Protection 31 | . 1 . 3 . . . 5 8 13 1 Artifact . | . . . . . . . . . . . Weapon 86 | 2 2 1 18 1 . . 13 18 21 10 Energy Gun 19 | 1 . . 8 . . . 3 4 . 3 Energy Cannon 4 | . . . . . . . . 4 . . Ballistic Gun 42 | 1 2 . 8 1 . . 7 6 12 5 Ballistic Cannon . | . . . . . . . . . . . Launcher 8 | . . 1 2 . . . 2 1 1 1 Special Weapon . | . . . . . . . . . . . Impact Weapon . | . . . . . . . . . . . Slashing Weapon 13 | . . . . . . . 1 3 8 1 Piercing Weapon . | . . . . . . . . . . . Special Melee Weapon . | . . . . . . . . . . . Unidentified Prototypes 10 | . . . 3 . . . 1 5 1 . Parts Lost 28 | . 3 . 2 . . . 2 7 2 12 Power 3 | . 2 . . . . . . . . 1 Propulsion 5 | . . . . . . . . 2 2 1 Utility 9 | . . . 1 . . . 1 3 . 4 Weapon 11 | . 1 . 1 . . . 1 2 . 6 Highest Loss Streak 6 | . 1 . 1 . . . 1 2 1 6 Average Slot Usage (%) 99 | . 96 100 99 100 100 100 99 99 100 74 Engine 8 | . 13 14 11 11 11 11 9 8 2 3 Reactor 1 | . . . . . . . . . 4 1 Treads 24 | . 28 28 22 22 22 22 27 27 23 12 Device 10 | . 9 . 11 11 11 11 9 9 14 10 Storage 9 | . 14 14 11 11 11 11 9 9 7 7 Processor 1 | . . . . . . . . . 7 14 Hackware 6 | . . . . . . . 9 9 13 3 Protection 7 | . 2 14 9 11 11 11 9 8 1 1 Energy Gun 3 | . 2 . 6 . . . 2 10 . 4 Ballistic Gun 22 | . 25 17 26 33 33 33 23 11 20 12 Naked Turns . | . . . . . . . . . . . Heaviest Build 113 | 11 58 59 66 66 66 66 109 111 113 106 Greatest Support 92 | 40 40 40 40 40 40 40 62 67 66 92 Greatest Overweight (x) 3 | 3 1 1 1 1 1 1 1 1 1 3 Average Overweight (x) . | . . 1 1 1 1 1 1 1 1 1 Largest Inventory Capacity 25 | 8 20 20 20 20 20 20 25 25 25 25 Average Capacity 22 | 7 15 20 20 20 20 20 24 25 25 24 Most Carried 25 | 2 20 20 20 20 20 20 25 25 25 24 Average Carried 21 | 1 11 20 19 20 19 20 24 24 24 20 Final Capacity 25 | 8 20 20 20 20 20 20 25 25 25 5 Final Carried 25 | 2 20 20 20 20 20 20 25 25 24 5 Class Distribution -------------------- 44% | Tank 18% | Mutant 9% | Hacker-Skirmisher 7% | Scavenger-Tank 6% | Hacker-Mutant 3% | Commander-Tank Dominant Class ---------------- Mutant | -10/Materials Mutant | -10/Mines Tank | -9/Materials Tank | -9/Mines Tank | -9/Exiles Tank | -8/Mines Tank | -8/Materials Tank | -8/Storage Hacker-Skirmisher | -7/Factory Gunner | -7/Waste Resources | -11 -10 -10 -9 -9 -9 -8 -8 -8 -7 -7 ----------- Run | Scr Mat Min Mat Min Exi Min Mat Sto Fac Was Matter Collected 5460 | 228 439 65 769 56 10 . 1321 558 1834 180 Remotely . | . . . . . . . . . . . Salvage Created 10022 | . 671 47 1575 114 . . 2142 2092 1898 1483 Parts 512 | . 44 5 115 3 . . 116 108 101 20 Haulers Intercepted 20 | . 2 . 6 . . . 6 6 . . Recyclers Shooed 7 | . 2 . . . . . 1 . 4 . Parts Field Recycled . | . . . . . . . . . . . Retrieved Matter . | . . . . . . . . . . . Parts Self-Destructed . | . . . . . . . . . . . Prevented . | . . . . . . . . . . . Kills | -11 -10 -10 -9 -9 -9 -8 -8 -8 -7 -7 ------- Run | Scr Mat Min Mat Min Exi Min Mat Sto Fac Was Combat Hostiles Destroyed 146 | . 12 2 32 1 . . 36 29 29 5 Guns 123 | . 12 1 28 1 . . 30 20 26 5 Cannons 5 | . . . . . . . . 5 . . AOE 14 | . . 1 4 . . . 6 . 3 . Classes Destroyed 17 | . 6 1 4 . . . 3 1 1 1 Worker 8 | . . . 2 . . . 2 . 4 . Builder 9 | . . . 3 . . . 1 1 4 . Tunneler 4 | . 1 . . . . . 2 . 1 . Hauler 20 | . 2 . 6 . . . 6 6 . . Recycler 14 | . 2 . . 1 . . 2 2 7 . Mechanic 2 | . . . . . . . 1 1 . . Operator 5 | . . . 1 . . . . 4 . . Watcher 14 | . 1 . 4 . . . 4 2 3 . Swarmer 29 | . 3 1 9 . . . 8 2 6 . Grunt 64 | . 9 . 14 1 . . 14 15 11 . Brawler 1 | . . . . . . . 1 . . . Duelist 5 | . . . . . . . 3 1 1 . Sentry 31 | . . . 9 . . . 10 10 2 . Demolisher 1 | . . 1 . . . . . . . . Hunter 3 | . . . . . . . . 1 2 . Programmer 7 | . . . . . . . . . 7 . Compactor 5 | . . . . . . . . . . 5 Best Kill Streak 7 | . 4 1 7 1 . . 7 6 4 3 Combat Bots Only 7 | . 3 1 7 1 . . 6 5 3 3 Max Kills in Single Turn 4 | . 1 1 3 1 . . 4 2 2 1 Gunslinging 1 | . . . 1 . . . 1 . . . Exploded 3 | . . 1 3 . . . 3 . 2 . Melee . | . . . . . . . . . . . Uniques/NPCs Destroyed . | . . . . . . . . . . . Combat | -11 -10 -10 -9 -9 -9 -8 -8 -8 -7 -7 -------- Run | Scr Mat Min Mat Min Exi Min Mat Sto Fac Was Damage Taken 7413 | . 669 83 917 150 22 . 1231 1336 1404 1601 Core 1083 | . 62 . 97 45 . . 110 52 172 545 Absorbed by Shields . | . . . . . . . . . . . Core Remaining (%) 77 | 100 . 75 . . . 64 . 70 . . Volleys Fired 465 | . 65 5 73 3 . . 107 81 110 21 Largest 3 | . 2 2 3 3 . . 3 3 3 3 Hottest 197 | . 60 40 195 73 . . 125 197 84 183 Shots Fired 1280 | . 130 8 209 9 . . 311 238 317 58 Gun 1212 | . 130 6 204 9 . . 307 182 316 58 Cannon 56 | . . . . . . . . 56 . . Launcher 12 | . . 2 5 . . . 4 . 1 . Special . | . . . . . . . . . . . Kinetic 962 | . 128 6 136 9 . . 281 48 316 38 Thermal 306 | . 2 . 68 . . . 26 190 . 20 Explosive 12 | . . 2 5 . . . 4 . 1 . Electromagnetic . | . . . . . . . . . . . Robot Hit Streak 34 | . 10 12 15 6 . . 25 23 14 34 Robot Miss Streak 8 | . 6 1 6 2 . . 5 3 8 3 Penetration Max . | . . . . . . . . . . . Secondary Targets 17 | . 1 . 4 . . . 7 1 3 1 Max Gunslinging Chain 1 | . 1 . 1 . . . 1 1 1 1 Shots Hit Robots 880 | . 90 4 143 6 . . 207 149 225 56 Core Hits 471 | . 37 4 94 1 . . 86 63 124 62 Critical Kills 5 | . 1 . 1 . . . 1 2 . . Critical Parts Destroyed 1 | . . . 1 . . . . . . . Critical Strikes 15 | . 1 . 2 . . . 3 8 . 1 Burn 9 | . . . . . . . 2 6 . 1 Meltdown 2 | . . . . . . . . 2 . . Destroy 4 | . 1 . 2 . . . 1 . . . Melee Attacks 43 | . . . . . . . 3 7 31 2 Impact . | . . . . . . . . . . . Slashing 43 | . . . . . . . 3 7 31 2 Piercing . | . . . . . . . . . . . Sneak Attacks 3 | . . . . . . . 1 . 2 . Combat Hostiles . | . . . . . . . . . . . Follow-up Attacks . | . . . . . . . . . . . Damage Inflicted 18282 | . 1039 84 2560 125 . 13 4640 3008 5160 1653 Guns 14998 | . 1019 53 2183 107 . . 3511 2278 4194 1653 Cannons 720 | . . . . . . . . 720 . . Explosions 1856 | . . 13 350 . . . 828 . 665 . Melee 339 | . . . . . . . 105 . 234 . Ramming 369 | . 20 18 27 18 . 13 196 10 67 . Kinetic 11768 | . 997 53 1475 107 . . 3111 558 4194 1273 Thermal 3969 | . 22 . 708 . . . 419 2440 . 380 Explosive 1837 | . . 13 350 . . . 809 . 665 . Electromagnetic . | . . . . . . . . . . . Impact . | . . . . . . . . . . . Slashing 339 | . . . . . . . 105 . 234 . Piercing . | . . . . . . . . . . . Highest Corruption 23 | . 2 2 . 1 1 1 2 2 3 23 Average Corruption 2 | . 2 2 . 1 1 1 2 2 2 13 Corruption Purged . | . . . . . . . . . . . Effects 128 | . 6 16 . 6 4 1 32 28 26 9 Message Errors 55 | . 2 6 . 2 2 1 17 15 7 3 Matter Fused 11 | . . . . . . . . . 9 2 Heat Flow Errors 20 | . 2 4 . . . . 4 5 5 . Energy Discharges 20 | . 1 3 . 1 2 . 7 2 3 1 Data Loss (minor) 17 | . 1 3 . 3 . . 3 5 1 1 Weapon Failures 5 | . . . . . . . 1 1 1 2 Overload Shots . | . . . . . . . . . . . Overflow Damage 408 | . . . 46 . . . 104 15 243 . Projectiles 15 | . . . . . . . . 15 . . Explosions 205 | . . . 46 . . . 89 . 70 . Melee 188 | . . . . . . . 15 . 173 . Knockbacks 2 | . . . . . . . . . 2 . Impact 2 | . . . . . . . . . 2 . Kinetic . | . . . . . . . . . . . Secondary . | . . . . . . . . . . . Self-Inflicted Damage 221 | . . 30 28 . . . . . 163 . Shots 4 | . . 1 1 . . . . . 2 . Rammed 49 | . 6 6 5 4 . 2 18 2 6 . Targets Rammed 54 | . 7 6 5 5 . 2 19 2 8 . Kicked . | . . . . . . . . . . . Crushed 5 | . 1 . . 1 . . 1 . 2 . Highest Temperature 317 | . 146 283 302 24 . . 272 317 250 32 Average Temperature 73 | . 47 119 45 13 . . 69 85 109 20 Received Heat Transfer 1845 | . 231 . 282 51 9 . 558 477 237 . Effects 4 | . . . . . . . . 4 . . Energy Bleed 1 | . . . . . . . . 1 . . Interference 3 | . . . . . . . . 3 . . Siege Activations . | . . . . . . . . . . . Robots Corrupted . | . . . . . . . . . . . Combat Hostiles . | . . . . . . . . . . . Parts Fried 4 | . . . . . . . 1 3 . . Impact Corruptions 4 | . . . . . . . 3 . 1 . Robots Melted 3 | . . . . . . . . 3 . . Combat Hostiles 3 | . . . . . . . . 3 . . Parts Melted 22 | . . . 2 . . . . 20 . . Heat Transferred 7757 | . 50 . 1108 . . . 901 4921 . 777 Parts Sabotaged . | . . . . . . . . . . . Parts Stolen . | . . . . . . . . . . . Parts Stripped . | . . . . . . . . . . . Power Chain Reactions . | . . . . . . . . . . . Missiles Intercepted . | . . . . . . . . . . . Alert | -11 -10 -10 -9 -9 -9 -8 -8 -8 -7 -7 ------- Run | Scr Mat Min Mat Min Exi Min Mat Sto Fac Was Peak Influence 571 | . 135 131 388 312 . . 571 518 550 191 Initial 191 | . . 37 . 139 . . . 59 166 191 Average 192 | . 46 44 192 161 . . 187 317 233 162 Maximum Alert Level 2 | . . . 1 1 . . 2 2 2 . Low Security (%) 61 | 100 100 100 57 61 . 100 69 21 52 100 Level 1 25 | . . . 42 38 . . 15 51 25 . Level 2 12 | . . . . . . . 15 27 22 . Level 3 . | . . . . . . . . . . . Level 4 . | . . . . . . . . . . . Level 5 . | . . . . . . . . . . . High Security . | . . . . . . . . . . . Max Security . | . . . . . . . . . . . Squads Dispatched 35 | . 3 . 3 1 . . 3 7 18 . Investigation 11 | . 2 . 2 . . . 2 . 5 . Extermination 8 | . . . . . . . . . 8 . Reinforcement 10 | . 1 . 1 . . . . 4 4 . Assault 2 | . . . . 1 . . 1 . . . Garrison 4 | . . . . . . . . 3 1 . Intercept . | . . . . . . . . . . . Construction Impeded 2 | . . . . . . . . . 2 . Haulers Reinforced . | . . . . . . . . . . . Cargo Convoy Interrupts . | . . . . . . . . . . . Stealth | -11 -10 -10 -9 -9 -9 -8 -8 -8 -7 -7 --------- Run | Scr Mat Min Mat Min Exi Min Mat Sto Fac Was Distress Signals 8 | . . . 4 . . . 2 2 . . Communications Jammed . | . . . . . . . . . . . Distress Signals . | . . . . . . . . . . . Times Spotted 230 | . 26 8 45 5 . . 55 44 41 6 Peak Tracking Total 8 | . 4 3 8 5 . . 5 6 3 5 Tactical Retreats 13 | . . 1 3 . . . 1 7 1 . Traps | -11 -10 -10 -9 -9 -9 -8 -8 -8 -7 -7 ------- Run | Scr Mat Min Mat Min Exi Min Mat Sto Fac Was Traps Triggered 10 | . 4 . 2 1 . . 1 . 2 . Indirectly . | . . . . . . . . . . . Trap Hack Attempts . | . . . . . . . . . . . Triggered . | . . . . . . . . . . . Disarmed 7 | . . . . . . . 4 3 . . Reprogrammed . | . . . . . . . . . . . Reused 5 | . . . . . . . . 2 3 . Traps Reconfigurated 20 | . . . . . . . 3 13 4 . Traps Extracted . | . . . . . . . . . . . Installed . | . . . . . . . . . . . Triggered 6 | . . . . . . . . 3 3 . Machines | -11 -10 -10 -9 -9 -9 -8 -8 -8 -7 -7 ---------- Run | Scr Mat Min Mat Min Exi Min Mat Sto Fac Was Machines Disabled 16 | . . . 1 1 . . 2 8 4 . Max in Single Turn 3 | . . . 1 . . . 1 1 3 . Garrison Access 1 | . . . . . . . . . 1 . Machines Sabotaged . | . . . . . . . . . . . Garrisons Compromised . | . . . . . . . . . . . Overloaded Fab Kills . | . . . . . . . . . . . Fab Network Shutdowns . | . . . . . . . . . . . Hacking | -11 -10 -10 -9 -9 -9 -8 -8 -8 -7 -7 --------- Run | Scr Mat Min Mat Min Exi Min Mat Sto Fac Was Machines Accessed 58 | . 8 . 11 1 3 . 16 6 13 . Terminals 39 | . 6 . 10 . . . 12 4 7 . Fabricators 4 | . . . . . . . . . 4 . Repair Stations 4 | . . . 1 . . . 2 1 . . Recycling Units 2 | . 2 . . . . . . . . . Scanalyzers 1 | . . . . . . . 1 . . . Garrison Access 4 | . . . . . . . 1 1 2 . Total Hacks 186 | . 21 . 40 1 15 . 50 24 35 . Successful 122 | . 13 . 25 1 15 . 32 17 19 . Failed 64 | . 8 . 15 . . . 18 7 16 . Catastrophic 2 | . . . 1 . . . . . 1 . Database Lockouts . | . . . . . . . . . . . Manual 97 | . 19 . 32 . 1 . 24 12 9 . Terminals 127 | . 19 . 37 . . . 35 15 21 . Fabricators 10 | . . . . . . . . . 10 . Repair Stations 18 | . . . 3 . . . 9 6 . . Recycling Units 2 | . 2 . . . . . . . . . Scanalyzers 3 | . . . . . . . 3 . . . Garrison Access 10 | . . . . . . . 3 3 4 . Terminal Hacks 61 | . 5 . 10 1 15 . 14 8 8 . Record 14 | . . . . . 14 . . . . . Part Schematic 3 | . . . 1 . . . . 1 1 . Open Door 1 | . . . . 1 . . . . . . Branch Access Points 3 | . 1 . . . . . 1 . 1 . Terminal Index 6 | . 1 . 2 . . . 1 1 1 . Fabricator Index 1 | . . . . . . . . . 1 . Alert Level 11 | . 1 . 2 . . . 4 2 2 . Unreport Threat 8 | . . . 1 . . . 4 2 1 . Disarm Traps 2 | . . . . . . . 1 1 . . Hauler Manifests 2 | . . . . . . . 1 . 1 . Zone Layout 9 | . 2 . 4 . . . 2 1 . . EX-Prototype ID Bank 1 | . . . . . 1 . . . . . Fabricator Hacks 7 | . . . . . . . . . 7 . Load Schematic 4 | . . . . . . . . . 4 . Build 3 | . . . . . . . . . 3 . Repair Station Hacks 15 | . . . 3 . . . 6 6 . . Scan Component 8 | . . . 2 . . . 3 3 . . Repair 7 | . . . 1 . . . 3 3 . . Recycling Unit Hacks . | . . . . . . . . . . . Scanalyzer 2 | . . . . . . . 2 . . . Insert Component 1 | . . . . . . . 1 . . . Analyze 1 | . . . . . . . 1 . . . Garrison Access Hacks 1 | . . . . . . . . . 1 . Seal Access 1 | . . . . . . . . . 1 . Unauthorized Hacks 36 | . 8 . 12 . . . 10 3 3 . Terminals 34 | . 6 . 12 . . . 10 3 3 . Track 2 | . . . 2 . . . . . . . Assimilate 1 | . . . . . . . . . 1 . Botnet 30 | . 6 . 9 . . . 10 3 2 . Operators 1 | . . . 1 . . . . . . . Fabricators . | . . . . . . . . . . . Repair Stations . | . . . . . . . . . . . Recycling Units 2 | . 2 . . . . . . . . . Tunnel 2 | . 2 . . . . . . . . . Scanalyzers . | . . . . . . . . . . . Garrison Access . | . . . . . . . . . . . Data Cores Recovered 1 | . . . . . . . . 1 . . Used . | . . . . . . . . . . . Hacking Detections 49 | . 6 . 11 . . . 14 6 12 . Full Trace Events 8 | . . . . . . . 2 1 5 . Feedback Events . | . . . . . . . . . . . Feedback Blocked . | . . . . . . . . . . . Robot Schematics Acquired . | . . . . . . . . . . . Robots Built . | . . . . . . . . . . . Matter . | . . . . . . . . . . . Time . | . . . . . . . . . . . Total Robot Build Rating . | . . . . . . . . . . . Part Schematics Acquired 4 | . . . 1 . . . 1 1 1 . Parts Built 6 | . . . . . . . . . 6 . Matter 504 | . . . . . . . . . 504 . Time 168 | . . . . . . . . . 168 . Total Part Build Rating 24 | . . . . . . . . . 24 . Parts Repaired 7 | . . . 1 . . . 3 3 . . Time 358 | . . . 38 . . . 196 124 . . Parts Recycled . | . . . . . . . . . . . Recycled Matter . | . . . . . . . . . . . Retrieved Matter . | . . . . . . . . . . . Retrieved Components . | . . . . . . . . . . . Parts Scanalyzed 1 | . . . . . . . 1 . . . Part Schematics Acquired 1 | . . . . . . . 1 . . . Parts Damaged 1 | . . . . . . . 1 . . . Bothacking | -11 -10 -10 -9 -9 -9 -8 -8 -8 -7 -7 ------------ Run | Scr Mat Min Mat Min Exi Min Mat Sto Fac Was Used RIF Installer . | . . . . . . . . . . . Robots Hacked . | . . . . . . . . . . . Non-combat . | . . . . . . . . . . . Combat . | . . . . . . . . . . . Robot Hacks Applied . | . . . . . . . . . . . Relay Couplers Released . | . . . . . . . . . . . Robots Rewired . | . . . . . . . . . . . Allies Hacked 1 | . . . . . . . . . 1 . Hacks Repelled . | . . . . . . . . . . . Allies | -11 -10 -10 -9 -9 -9 -8 -8 -8 -7 -7 -------- Run | Scr Mat Min Mat Min Exi Min Mat Sto Fac Was Total Allies 16 | . . 3 . 1 . . . 11 1 . Largest Group 10 | . . 3 3 1 1 1 1 10 9 . Highest-Rated Group 237 | . . 40 40 31 31 31 31 237 237 . Highest-Rated Ally 100 | . . 16 16 31 31 31 31 100 100 . Total Orders 2 | . . . . . . . . 2 . . STAY 1 | . . . . . . . . 1 . . FOLLOW 1 | . . . . . . . . 1 . . Ally Attacks 130 | . . 11 15 18 22 . 1 6 57 . Total Damage 1500 | . . 66 136 259 300 . 22 77 640 . Kills 30 | . . 5 4 6 5 . . 1 9 . Allies Corrupted . | . . . . . . . . . . . Allies Melted . | . . . . . . . . . . . Intel | -11 -10 -10 -9 -9 -9 -8 -8 -8 -7 -7 ------- Run | Scr Mat Min Mat Min Exi Min Mat Sto Fac Was Robot Analysis Total . | . . . . . . . . . . . Derelict Logs Recovered 3 | . . 1 . 2 . . . . . . Drone Launches . | . . . . . . . . . . . Drone Recoveries . | . . . . . . . . . . . Exploration | -11 -10 -10 -9 -9 -9 -8 -8 -8 -7 -7 ------------- Run | Scr Mat Min Mat Min Exi Min Mat Sto Fac Was Turns Passed 21476 | 70 1928 1652 2937 962 1558 112 4080 3368 4626 183 Spaces Moved 7175 | 41 772 617 970 361 592 42 1361 866 1529 24 Core 11 | 9 . . . . . . . . . 2 Treads 7164 | 32 772 617 970 361 592 42 1361 866 1529 22 Legs . | . . . . . . . . . . . Wheels . | . . . . . . . . . . . Hover . | . . . . . . . . . . . Flight . | . . . . . . . . . . . Fastest Speed 50 | 50 160 260 260 260 260 260 255 245 245 200 Average Speed 249 | 145 207 260 260 260 260 260 255 258 246 250 Slowest Speed 260 | 200 260 260 260 260 260 260 260 260 250 260 Overloaded Moves . | . . . . . . . . . . . Propulsion Burnouts . | . . . . . . . . . . . Robots Hopped . | . . . . . . . . . . . Cave-ins Triggered 2 | . . . . . . . . . . 2 Exploration Rate (%) 66 | 4 97 96 96 76 89 11 98 95 39 25 Regions Visited 10 Branch Regions 5 Pre-discovered Areas 6 | . 2 1 . 1 1 . . 1 . . Known Exits Taken 2 | . 1 . . . . . 1 . . . Unknown Exits Taken 7 | 1 . 1 1 1 1 1 . 1 . . Scrap Searched 4 | . . 1 . 2 . 1 . . . . Spaces Dug 59 | . . 19 . . . . 2 7 29 2 Terrain Destroyed 221 | . . 19 36 . . . 71 8 85 2 Melee 40 | . . . . . . . 2 7 29 2 Projectile 2 | . . . . . . . 1 1 . . AOE 179 | . . 19 36 . . . 68 . 56 . Terrain Rammed . | . . . . . . . . . . . Walls Destroyed . | . . . . . . . . . . . Machines Disabled . | . . . . . . . . . . . Actions | -11 -10 -10 -9 -9 -9 -8 -8 -8 -7 -7 --------- Run | Scr Mat Min Mat Min Exi Min Mat Sto Fac Was Total 9839 | 48 967 649 1257 376 613 43 1795 1830 2160 101 Wait 1634 | . 72 19 119 . 8 . 228 763 390 35 Move 7166 | 40 771 616 969 360 591 41 1360 865 1529 24 Hop . | . . . . . . . . . . . Pick Up 119 | 2 25 1 23 2 3 . 19 29 15 . Fast Attach 35 | 6 3 . 8 1 . . 4 10 . 3 Attach 36 | . 2 . 4 . . . 5 8 5 12 Detach 1 | . . . . . . . . . . 1 Swap 146 | . 9 1 21 1 1 . 27 28 57 1 Drop 131 | . 13 1 35 4 3 . 23 37 13 2 Fire 465 | . 65 5 73 3 . . 107 81 110 21 Melee 43 | . . . . . . . 3 7 31 2 Ram . | . . . . . . . . . . . Kick . | . . . . . . . . . . . Crush 54 | . 7 6 5 5 . 2 19 2 8 . Escape Stasis 2 | . . . . . . . . . 2 . Rewire 7 | . . . . . 7 . . . . . Trap . | . . . . . . . . . . . Miscellaneous . | . . . . . . . . . . . Route ------- -11/Scrapyard -10/Materials (discovered 4 exits: *Mat x3 / *Min) -10/Mines (discovered 2 exits: *Mat x2) -9/Materials (discovered 5 exits: *Mat x3 / *Min x2) -9/Mines (discovered 2 exits: *Mat / *Exi) -9/Exiles (discovered 2 exits: [*Min x2]) -8/Mines -8/Materials (discovered 5 exits: *Fac x3 / *Sto x2) -8/Storage -7/Factory (discovered 4 exits: *Fac x2 / Low x2) -7/Waste History --------- Turn | Location | Event 10 | -11/Scrapyard | Discovered new exit (range 16) 71 | -11/Scrapyard | Entered Materials 307 | -10/Materials | Build established: Mutant 666 | -10/Materials | Discovered new exit (range 16) 798 | -10/Materials | Discovered new exit (range 14) 957 | -10/Materials | Discovered new exit (range 14) 1465 | -10/Materials | Identified exit to Mines 1999 | -10/Materials | Entered Mines 2000 | -10/Mines | Assembled infested the area 2005 | -10/Mines | Assisted by a Guerilla fighting off Assembled 2280 | -10/Mines | Discovered new exit (range 10) 2521 | -10/Mines | Assisted by bots powering up and referring to "LRC-V3" 2638 | -10/Mines | Found a hidden stash of uninstalled traps 3093 | -10/Mines | Discovered new exit (range 7) 3094 | -10/Mines | Learned location of Storage (-8) 3103 | -10/Mines | Learned Materials stockpile data 3651 | -10/Mines | Entered Materials 3651 | -9/Materials | Accompanied by 3 allies 3651 | -9/Materials | Evolved 2 slots: Utility x1, Weapon x1 3930 | -9/Materials | Destroyed 7 combat bots 4176 | -9/Materials | Repaired Imp. Heat Sink 4559 | -9/Materials | Build established: Tank 4600 | -9/Materials | Discovered new exit (range 16) 5001 | -9/Materials | Discovered new exit (range 9) 5440 | -9/Materials | Discovered new exit (range 16) 5643 | -9/Materials | Discovered new exit (range 15) 6016 | -9/Materials | Discovered new exit (range 4) 6588 | -9/Materials | Entered Mines 6589 | -9/Mines | Met a Derelict testing a Signal Generator 6637 | -9/Mines | Learned Materials stockpile data 6794 | -9/Mines | Found a damaged Exp. Sensor Array with a note attached 6800 | -9/Mines | Found Prototype Device 6966 | -9/Mines | Met a Derelict who couldn't figure out how to use a Trap Extractor 7140 | -9/Mines | Discovered new exit (range 16) 7457 | -9/Mines | Deemed a non-threat by the Exiles lab entrance 7540 | -9/Mines | Discovered new exit (range 5) 7550 | -9/Mines | Entered Exiles 7550 | -9/Exiles | Found Exiles lab destroyed 7550 | -9/Exiles | Accompanied by 1 ally 7589 | -9/Exiles | Discovered new exit (range 15) 7869 | -9/Exiles | Learned location of Zion (-7) 8361 | -9/Exiles | Discovered new exit (range 14) 8631 | -9/Exiles | Opened EX-Vault 8649 | -9/Exiles | Found Trap Reconfigurator 9108 | -9/Exiles | Entered Mines 9108 | -8/Mines | Accompanied by 1 ally 9124 | -8/Mines | Discovered new exit (range 7) 9220 | -8/Mines | Entered Materials 9220 | -8/Materials | Accompanied by 1 ally 9220 | -8/Materials | Evolved 2 slots: Propulsion x1, Utility x1 9590 | -8/Materials | Repaired Enh. Autogun 9623 | -8/Materials | Repaired Enh. Autogun 9821 | -8/Materials | Identified Exp. Sensor Array 10003 | -8/Materials | Repaired Broken Exp. Sensor Array 10090 | -8/Materials | Discovered new exit (range 9) 10527 | -8/Materials | Build established: Scavenger-Tank 10576 | -8/Materials | Discovered new exit (range 14) 10820 | -8/Materials | First assault squad dispatched 11981 | -8/Materials | Identified exit to Storage 12169 | -8/Materials | Discovered new exit (range 15) 12225 | -8/Materials | Build established: Tank 12516 | -8/Materials | Discovered new exit (range 15) 12914 | -8/Materials | Discovered new exit (range 10) 13300 | -8/Materials | Entered Storage 13679 | -8/Storage | Learned location of Armory (-4) 13885 | -8/Storage | Garrison activated, responded to threat 14985 | -8/Storage | Repaired Cooling System 15019 | -8/Storage | Repaired Med. Armor Plating 15080 | -8/Storage | Repaired Adv. Beam Rifle 15771 | -8/Storage | Assisted by bots powering up and referring to "LRC-V3" 15840 | -8/Storage | Discovered new exit (range 6) 16064 | -8/Storage | Build established: Commander-Tank 16590 | -8/Storage | Met 01-MTF 16668 | -8/Storage | Entered Factory 16668 | -7/Factory | Accompanied by 9 allies (01-MTF) 16668 | -7/Factory | Evolved 2 slots: Utility x2 16673 | -7/Factory | 01-MTF left 16956 | -7/Factory | Build established: Commander-Skirmisher 17470 | -7/Factory | Build established: Skirmisher 17801 | -7/Factory | Build established: Hacker-Skirmisher 18119 | -7/Factory | Identified exit to Lower Caves 18411 | -7/Factory | Garrison activated, responded to threat 18526 | -7/Factory | Fabricated Flak Gun? 18550 | -7/Factory | Discovered new exit (range 16) 19201 | -7/Factory | Build established: Hacker-Mutant 19747 | -7/Factory | Fabricated Flak Gun (x2) 19819 | -7/Factory | Build established: Hacker-Skirmisher 20139 | -7/Factory | Discovered new exit (range 5) 20155 | -7/Factory | Identified exit to Factory 20522 | -7/Factory | Fabricated Flak Gun? 20985 | -7/Factory | Build established: Hacker-Mutant 21294 | -7/Factory | Sucked down chute 21294 | -7/Factory | Entered Waste 21309 | -7/Waste | EMP discharged 21309 | -7/Waste | System corruption reached 10% 21325 | -7/Waste | Destroyed C-40 Crusher 21370 | -7/Waste | Destroyed C-40 Crusher 21372 | -7/Waste | Spotted C-40 Crusher 21372 | -7/Waste | Spotted C-40 Crusher 21372 | -7/Waste | Spotted C-40 Crusher 21372 | -7/Waste | Spotted C-40 Crusher 21374 | -7/Waste | Crushed by Compactor (1 part destroyed, 1 dropped) 21374 | -7/Waste | Crushed by Compactor (1 part destroyed, 1 dropped) 21384 | -7/Waste | Destroyed C-40 Crusher 21388 | -7/Waste | Crushed by Compactor (0 parts destroyed, 1 dropped) 21391 | -7/Waste | Crushed by Compactor (0 parts destroyed, 2 dropped) 21394 | -7/Waste | Crushed by Compactor (1 part destroyed) 21394 | -7/Waste | Destroyed C-40 Crusher 21396 | -7/Waste | Crushed by Compactor (1 part destroyed, 1 dropped) 21399 | -7/Waste | Crushed by Compactor (1 part destroyed) 21404 | -7/Waste | Crushed by Compactor (0 parts destroyed, 1 dropped) 21407 | -7/Waste | Crushed by Compactor (0 parts destroyed, 1 dropped) 21409 | -7/Waste | EMP discharged 21422 | -7/Waste | Core integrity fell below 50% 21426 | -7/Waste | Crushed by Compactor (1 part destroyed) 21457 | -7/Waste | Lost 6 parts (2u4w) 21463 | -7/Waste | Destroyed C-40 Crusher 21466 | -7/Waste | Crushed by falling debris 21471 | -7/Waste | Crushed by falling debris 21471 | -7/Waste | Core integrity fell below 20% 21471 | -7/Waste | Crushed by Compactor (1 part destroyed, 2 dropped) 21474 | -7/Waste | Crushed by Compactor (1 part destroyed, 2 dropped) 21477 | -7/Waste | Crushed by Compactor (1 part destroyed, 1 dropped) 21477 | -7/Waste | Destroyed by C-40 Crusher with Compactor Last Messages --------------- 21466_ Armor Integrity Analyzer destroyed. 21466_ System corrupted by crushing effect (+2). 21471_ The unstable cave ceiling collapses. 21471_ Crushed by falling debris. 21471_ Hvy. Treads destroyed. 21471_ System corrupted by crushing effect (+4). 21471_ Adv. Beam Rifle crushed. 21471_ Hrd. Medium Armor Plating crushed. 21471_ Adv. Beam Rifle crushed. 21474_ System corrupted: Component data lost. 21474_ Adv. Beam Rifle crushed. 21474_ Huge Storage Unit crushed. 21474_ Cooling System crushed. 21474_ Cooling System destroyed. 21477_ Adv. EMP Blaster crushed. 21477_ Plasma Cutter crushed. 21477_ Cooling System crushed. 21477_ Hrd. Medium Armor Plating crushed. 21477_ Cold Fusion Reactor crushed. 21477_ Imp. Signal Interpreter crushed. Map ----- +----------------------------------------------------+ | ?????????????????????????????????????????????????? | | ?????????????????????????????????????????????????? | | ?????????????????????????????????????????????????? | | ?????????????????????????????????????????????????? | | ?????????????????????????????????????????????????? | | ?????????????????????????????????????????????????? | | ?????????????????????????????????????????????????? | | ?????????????????????????????????????????????????? | | ??????????????????????#####??????????????????????? | | ?????????????????????# #??????????????????????? | | ???????############??# #??????????????????????? | | ???????# #??# #??????????????????????? | | ???????# #??# #??????????????????????? | | ???????# #### ######## ?????????????? | | ???????# ????????????? | | ???????# ????????????? | | ???????# ???????????? | | ???????# =! ????????????? | | ???????# #### #######????????????????? | | ???????# #??# #??????????????????????? | | ???????# [ #??# *#??????????????????????? | | ???????############??# ![#??????????????????????? | | ???????????????????### !!!###????????????????????? | | ???????????????????# CC!###????????????????????? | | ???????????????????# CC[###????????????????????? | | ???????????????????# !%@##?????????????????????? | | ???????????????????# * #??????????????????????? | | ???????????????????### #??????????????????????? | | ?????????????????????# #??????????????????????? | | ?????????????????????# ! #??????????????????????? | | ?????????????????????# #??????????????????????? | | ?????????????????????# #??????????????????????? | | ????????????????????? #??????????????????????? | | ???????????????????? #??????????????????????? | | ???????????????????? #??????????????????????? | | ???????????????????# #??????????????????????? | | ???????????????????### #??????????????????????? | | ?????????????????????# #??????????????????????? | | ?????????????????????# ???????????????????????? | | ?????????????????????# ???????????????????????? | | ?????????????????????? ???????????????????????? | | ?????????????????????????????????????????????????? | | ?????????????????????????????????????????????????? | | ?????????????????????????????????????????????????? | | ?????????????????????????????????????????????????? | | ?????????????????????????????????????????????????? | | ?????????????????????????????????????????????????? | | ?????????????????????????????????????????????????? | | ?????????????????????????????????????????????????? | | ?????????????????????????????????????????????????? | +----------------------------------------------------+ Best States ------------- Heat Dissipation 78 Energy Generation 18 Energy Capacity 310 Matter Stores 300 Matter Capacity 300 Sight Range 16 Robot Scan Range 20 Terrain Scan Density 10 Armor Coverage 225 Weapon Cycling 15 Evasion (%) 50 Armor Integrity Analysis 35 Recoil Reduction 3 Offensive Hacking 20 Item Schematics ----------------- Com. Wheel | -9/Materials | Hacked Exp. Sensor Array | -8/Materials | Scanalyzed Plasma Cannon | -8/Storage | Hacked Flak Gun | -7/Factory | Hacked Robot Schematics ------------------ None Fabricated ------------ Flak Gun | x2 | -7/Factory Flak Gun | x2 | -7/Factory Flak Gun | x2 | -7/Factory Alien Tech Used ----------------- None Achievements -------------- None Challenges ------------ None Game ------ Seed CoilFlightField Manual? 0 Play Time 01:34:36 Cumulative 1232.2 hours Start 2021.06.01 @ 19:21:15 End 2021.06.01 @ 21:03:01 Sessions 1 Manual Loads 0 Difficulty Rogue Special Mode None Game No. 419 Rogue 419 Adventurer 0 Explorer 0 Win Type - Total 89 Types 18/12/37/5/1/2/12/1/1 Lore% 97 Gallery% 96 Achievement% 85 Wizard Run 0 Options --------- ASCII 0 Keyboard 0 Movement Numpad Keybinds 0 Fullscreen 1 Font 18/SmallcapsGlow Map View 76x50 Tactical HUD 1 Map Filters NONE Filters NONE Steam 1 RUN: 084f251c-700f-4222-8701-27542c3ba3f9